Cogmind - Beta 15 @@@ ROGUE MODE // 2025.08.16 @ 15:23:46 Player: Naughtyusername Result: Destroyed by WR-R4O(R) with Subdweller Machine Gun Performance ------------- Evolutions (0) 0 Regions Visited (2) 400 Robots Destroyed (16) 80 Value Destroyed (512) 512 Prototype IDs (2) 40 Alien Tech Used (0) 0 Bonus (0) 0 TOTAL SCORE: 1032 Bonus ------- None Cogmind --------- Core Integrity 0/250 Matter 228/300 Energy 80/100 System Corruption 0% Temperature Cool (0) Movement Treading (480) Ox4 Location -10/Subcaves Parts ------- > --- POWER (1) -------- (None) > --- PROPULSION (2) --- Light Treads Wheel > --- UTILITY (2) ------ Huge Storage Unit Seismic Detector > --- WEAPON (2) ------- Light Assault Rifle Light Assault Rifle > --- INVENTORY (25) --- Improved Ion Engine Light Treads Wheel Improved Heat Sink High-capacity Storage Unit Light Assault Rifle Light Assault Rifle Light Assault Rifle Light Assault Rifle Light Assault Rifle Light Assault Rifle Grenade Launcher Hammer Peak State ------------ > --- POWER ------------ Light Ion Engine > --- PROPULSION ------- Light Treads Wheel > --- UTILITY ---------- Huge Storage Unit Light Armor Plating > --- WEAPON ----------- Assault Rifle Light Assault Rifle > --- INVENTORY -------- Light Ion Engine Light Treads Improved Heat Sink High-capacity Storage Unit Seismic Detector Light Assault Rifle Light Assault Rifle Grenade Launcher [Rating: 8] Favorites ----------- Power Light Ion Engine Engine Light Ion Engine Propulsion Light Treads Treads Light Treads Leg Aluminum Leg Wheel Wheel Utility Huge Storage Unit Device Seismic Detector Storage Huge Storage Unit Protection Light Armor Plating Weapon Light Assault Rifle Ballistic Gun Light Assault Rifle Launcher Grenade Launcher Build | -11 -10 -10 ------- Run | Yrd Mat Sub Slots Evolved . | . . . Power . | . . . Propulsion . | . . . Utility . | . . . Weapon . | . . . Parts Attached 11 | 4 4 3 Power 1 | . . 1 Engine 1 | . . 1 Core . | . . . Reactor . | . . . Propulsion 3 | 2 1 . Treads 1 | 1 . . Leg . | . . . Wheel 2 | 1 1 . Hover . | . . . Flight . | . . . Utility 4 | 1 3 . Device 1 | 1 . . Storage 2 | . 2 . Processor . | . . . Hackware . | . . . Protection 1 | . 1 . Artifact . | . . . Weapon 3 | 1 . 2 Energy Gun . | . . . Energy Cannon . | . . . Ballistic Gun 2 | 1 . 1 Ballistic Cannon . | . . . Launcher 1 | . . 1 Special Weapon . | . . . Impact Weapon . | . . . Slashing Weapon . | . . . Piercing Weapon . | . . . Special Melee Weapon . | . . . Unidentified Prototypes . | . . . Parts Lost 5 | . 2 3 Power 2 | . . 2 Propulsion 1 | . 1 . Utility 1 | . 1 . Weapon 1 | . . 1 Highest Loss Streak 2 | . 1 2 To Critical Strikes . | . . . Average Backups 10 | 4 8 13 Power . | 1 1 . Propulsion 2 | 2 1 2 Utility 1 | . 1 2 Weapon 5 | 1 4 8 Tool/Special . | . . . Unused Backups 16 | 4 2 10 Power 1 | . . 1 Propulsion 5 | 4 . 1 Utility 3 | . 2 1 Weapon 7 | . . 7 Tool/Special . | . . . Average Slot Usage (%) 97 | . 95 99 Engine 13 | . 14 13 Treads 14 | . 14 14 Wheel 13 | . 13 14 Device 6 | . 2 14 Storage 14 | . 14 14 Protection 5 | . 8 . Ballistic Gun 27 | . 28 27 Peak Build Rating 8 | 7 8 8 Average Rating 7 | 6 7 7 On Entrance 6 | 6 7 7 Naked Turns . | . . . Heaviest Build 89 | 12 89 87 Greatest Support 10 | 10 10 10 Greatest Overweight (x) 8 | 1 8 8 Average Overweight (x) 6 | 1 5 8 Largest Inventory Capacity 25 | 8 25 25 Average Capacity 23 | 8 22 25 Most Carried 15 | 8 15 14 Average Carried 10 | 4 9 13 Final Capacity 25 | 8 25 25 Final Carried 15 | 4 15 13 Class Distribution -------------------- 100% | Mutant Dominant Class ---------------- Mutant | -10/Materials Mutant | -10/Subcaves Resources | -11 -10 -10 ----------- Run | Yrd Mat Sub Matter Collected 482 | 260 195 27 Remotely . | . . . Salvage Created 635 | 99 482 54 Parts 38 | 5 23 10 Haulers Intercepted . | . . . Recyclers Shooed 1 | 1 . . Parts Field Recycled . | . . . Retrieved Matter . | . . . Parts Self-Destructed 5 | . . 5 Prevented . | . . . Kills | -11 -10 -10 ------- Run | Yrd Mat Sub Combat Hostiles Destroyed 13 | . 11 2 Guns 12 | . 11 1 AOE 1 | . . 1 Classes Destroyed 6 | 2 2 2 Worker 1 | . 1 . Tunneler 1 | 1 . . Recycler 1 | 1 . . Grunt 11 | . 11 . Sentry 1 | . . 1 Subdweller 1 | . . 1 Best Kill Streak 3 | 2 3 1 Combat Bots Only 3 | . 3 1 Max Kills in Single Turn 1 | 1 1 1 Gunslinging . | . . . Exploded 1 | . . 1 Melee . | . . . Uniques/NPCs Destroyed . | . . . Combat | -11 -10 -10 -------- Run | Yrd Mat Sub Hostile Shots Fired 66 | . 47 19 Missed 16 | . 13 3 Hits 50 | . 34 16 Projectile 50 | . 34 16 AOE 2 | . . 2 Critical Strikes 3 | . 2 1 Damage Taken 796 | . 425 371 Core 255 | . 94 161 Absorbed by Shields . | . . . Core Remaining (%) 100 | 100 . . Volleys Fired 55 | 5 41 9 Largest 2 | 2 2 2 Hottest 40 | 40 40 40 Shots Fired 105 | 10 82 13 Gun 100 | 10 82 8 Cannon . | . . . Launcher 5 | . . 5 Special . | . . . Kinetic 100 | 10 82 8 Thermal . | . . . Explosive 5 | . . 5 Electromagnetic . | . . . Robot Hit Streak 11 | 4 10 11 Robot Miss Streak 2 | 1 2 2 Penetration Max . | . . . Secondary Targets . | . . . Shots Hit Robots 73 | 7 61 5 Core Hits 36 | 3 28 5 Critical Kills . | . . . Critical Parts Destroyed . | . . . Critical Strikes . | . . . Melee Attacks . | . . . Impact . | . . . Slashing . | . . . Piercing . | . . . Sneak Attacks . | . . . Combat Hostiles . | . . . Follow-up Attacks . | . . . Damage Inflicted 921 | 80 640 201 Guns 767 | 80 640 47 Cannons . | . . . Explosions 154 | . . 154 Melee . | . . . Ramming . | . . . Kinetic 767 | 80 640 47 Thermal . | . . . Explosive 154 | . . 154 Electromagnetic . | . . . Impact . | . . . Slashing . | . . . Piercing . | . . . Highest Corruption . | . . . Average Corruption . | . . . Corruption Purged . | . . . Corruption Blocked . | . . . Overload Shots . | . . . Overflow Damage . | . . . Projectiles . | . . . Explosions . | . . . Melee . | . . . Knockbacks . | . . . Impact . | . . . Kinetic . | . . . Secondary . | . . . Self-Inflicted Damage . | . . . Shots . | . . . Rammed . | . . . Targets Rammed . | . . . Kicked . | . . . Crushed . | . . . Highest Temperature 53 | . 53 . Average Temperature 14 | . 14 . Received Heat Transfer 333 | . 270 63 Siege Activations . | . . . Martial Activations . | . . . Shielding Activations . | . . . Robots Disrupted . | . . . Combat Hostiles . | . . . Robots Corrupted . | . . . Combat Hostiles . | . . . Parts Fried . | . . . Impact Corruptions . | . . . Robots Melted . | . . . Combat Hostiles . | . . . Parts Melted . | . . . Heat Transferred . | . . . Parts Sabotaged . | . . . Parts Stolen . | . . . Parts Stripped . | . . . Power Chain Reactions . | . . . Alert | -11 -10 -10 ------- Run | Yrd Mat Sub Maximum Alert Level . | . . . Low Security (%) 100 | 100 100 . Level 1 . | . . . Level 2 . | . . . Level 3 . | . . . Level 4 . | . . . Level 5 . | . . . High Security . | . . . Max Security . | . . . Peak Influence 93 | 10 93 . Initial . | . . . Average 47 | . 49 . Influence Increases 385 | 10 355 20 Destroy 0b10 Robot/C 240 | . 220 20 Destroy 0b10 Robot/NC 15 | 10 5 . Destroy Leader 50 | . 50 . Successful Hack 5 | . 5 . Select Force Hacks 30 | . 30 . Lose Combat Pursuer 45 | . 45 . Influence Decreases 385 | 10 340 35 Entered New Map 8 | . . 8 Time Decay 357 | 10 320 27 Lost Part 20 | . 20 . Squads Dispatched 3 | . 3 . Investigation 3 | . 3 . Extermination . | . . . Reinforcement . | . . . Assault . | . . . Garrison . | . . . Intercept . | . . . Searches Triggered . | . . . Construction Impeded . | . . . Haulers Reinforced . | . . . Active Scanning Responses . | . . . Cargo Convoy Interrupts . | . . . Stealth | -11 -10 -10 --------- Run | Yrd Mat Sub Distress Signals 2 | . 2 . Communications Jammed . | . . . Distress Signals . | . . . Times Spotted 22 | . 18 4 Peak Tracking Total 3 | . 3 3 Tactical Retreats 2 | . 2 . Traps | -11 -10 -10 ------- Run | Yrd Mat Sub Traps Triggered 1 | . 1 . Indirectly . | . . . Trap Hack Attempts . | . . . Triggered . | . . . Disarmed . | . . . Reprogrammed . | . . . Reused . | . . . Traps Extracted . | . . . Installed . | . . . Triggered . | . . . Machines | -11 -10 -10 ---------- Run | Yrd Mat Sub Machines Disabled . | . . . Max in Single Turn . | . . . Machines Repaired . | . . . Machines Dismantled . | . . . Machines Sabotaged . | . . . Overloaded Fab Kills . | . . . Hacking | -11 -10 -10 --------- Run | Yrd Mat Sub Machines Accessed 5 | . 5 . Terminals 4 | . 4 . Fabricators . | . . . Repair Stations . | . . . Recycling Units 1 | . 1 . Scanalyzers . | . . . Garrison Access . | . . . Total Hacks 10 | . 10 . Successful 5 | . 5 . Failed 5 | . 5 . Catastrophic 1 | . 1 . Database Lockouts . | . . . Manual 1 | . 1 . Terminals 8 | . 8 . Fabricators . | . . . Repair Stations . | . . . Recycling Units 2 | . 2 . Scanalyzers . | . . . Garrison Access . | . . . Terminal Hacks 3 | . 3 . Prototype ID Bank 1 | . 1 . Terminal Index 1 | . 1 . Recall Investigation 1 | . 1 . Fabricator Hacks . | . . . Repair Station Hacks . | . . . Recycling Unit Hacks 1 | . 1 . Retrieve Components 1 | . 1 . Scanalyzer . | . . . Garrison Access Hacks . | . . . Unauthorized Hacks 1 | . 1 . Terminals . | . . . Fabricators . | . . . Repair Stations . | . . . Recycling Units 1 | . 1 . Tunnel 1 | . 1 . Scanalyzers . | . . . Garrison Access . | . . . Data Cores Recovered . | . . . Used . | . . . Hacking Detections 4 | . 4 . Full Trace Events 1 | . 1 . Feedback Events . | . . . Feedback Blocked . | . . . Robot Schematics Acquired . | . . . Robots Built . | . . . Authchips . | . . . Time . | . . . Total Robot Build Rating . | . . . Part Schematics Acquired . | . . . Parts Built . | . . . Authchips . | . . . Time . | . . . Total Part Build Rating . | . . . Parts Repaired . | . . . Time . | . . . Parts Recycled . | . . . Recycled Matter . | . . . Retrieved Matter . | . . . Retrieved Components 1 | . 1 . Parts Scanalyzed . | . . . Part Schematics Acquired . | . . . Parts Damaged . | . . . Bothacking | -11 -10 -10 ------------ Run | Yrd Mat Sub Used RIF Installer . | . . . Robots Hacked . | . . . Non-combat . | . . . Combat . | . . . Robot Hacks Applied . | . . . Relay Couplers Released . | . . . Fabnet Peak Effective % . | . . . Robots Rewired . | . . . Allies Hacked . | . . . Hacks Repelled . | . . . Allies | -11 -10 -10 -------- Run | Yrd Mat Sub Total Allies . | . . . Largest Group . | . . . Highest-Rated Group . | . . . Highest-Rated Ally . | . . . Total Orders . | . . . Ally Attacks . | . . . Total Damage . | . . . Kills . | . . . Allies Corrupted . | . . . Allies Melted . | . . . Intel | -11 -10 -10 ------- Run | Yrd Mat Sub Active Infowar (turns) 675 | 15 130 530 Seismic 675 | 15 130 530 Robot Analysis Total . | . . . Derelict Logs Recovered . | . . . Drone Launches . | . . . Drone Recoveries . | . . . Exploration | -11 -10 -10 ------------- Run | Yrd Mat Sub Turns Passed 1473 | 48 895 530 Spaces Moved 678 | 29 397 252 Core . | . . . Treads . | . . . Legs . | . . . Wheels 678 | 29 397 252 Hover . | . . . Flight . | . . . Fastest Speed 95 | 95 95 200 Average Speed 175 | 95 166 200 Slowest Speed 200 | 95 200 200 Overloaded Moves . | . . . Propulsion Burnouts . | . . . Robots Hopped . | . . . Potential Cave-ins . | . . . Cave-ins Triggered . | . . . Exploration Rate (%) 25 | 3 51 21 Regions Visited 2 Branch Regions 1 Pre-discovered Areas 1 | . 1 . Known Exits Taken . | . . . Unknown Exits Taken 2 | 1 1 . Scrap Searched . | . . . Spaces Dug . | . . . Terrain Destroyed 17 | . . 17 Melee . | . . . Projectile . | . . . AOE 17 | . . 17 Terrain Rammed . | . . . Walls Destroyed . | . . . Machines Disabled . | . . . Actions | -11 -10 -10 --------- Run | Yrd Mat Sub Total 864 | 41 557 266 Wait 104 | . 104 . Move 676 | 28 396 252 Hop . | . . . Pick Up 12 | . 11 1 Fast Attach 1 | 1 . . Attach 6 | 2 1 3 Detach 2 | 2 . . Swap 5 | 1 3 1 Drop 3 | 2 1 . Fire 55 | 5 41 9 Melee . | . . . Ram . | . . . Kick . | . . . Crush . | . . . Escape Stasis . | . . . Rewire . | . . . Trap . | . . . Miscellaneous . | . . . Route ------- -11/Scrapyard -10/Materials (discovered 2 exits: [*Mat] / [*Sub]) -10/Subcaves History --------- Turn | Location | Event 21 | -11/Scrapyard | Discovered new exit (range 3) 49 | -11/Scrapyard | Entered Materials 248 | -10/Materials | Discovered new exit (range 10) 316 | -10/Materials | Build established: Mutant 581 | -10/Materials | Discovered new exit (range 8) 944 | -10/Materials | Entered Subcaves 1463 | -10/Subcaves | Ambushed by Subdweller buried in earth 1464 | -10/Subcaves | Core integrity fell below 50% 1471 | -10/Subcaves | Core integrity fell below 20% 1474 | -10/Subcaves | Destroyed by WR-R4O(R) with Subdweller Machine Gun Last Messages --------------- AMBIENT_HEAT=-10 GOAL=ESCAPE 01028_ Critical hit (Burn: +37). 01031_ Lgt. Ion Engine destroyed. 01036_ Y-45 Defender destroyed. 01038_ Subatomizers dissect the Heat Sink. 01041_ Lgt. Armor Plating fries itself beyond repair. 01043_ Lgt. Treads fries itself beyond repair. 01044_ Beam Rifle fries itself beyond repair. 01045_ Heat Sink fries itself beyond repair. 01045_ Acquired Imp. Ion Engine. 01046_ Acquired 27 matter. 01049_ Subatomizers dissect the Heat Sink. 01050_ Heat Sink fries itself beyond repair. 01459_ Assault Rifle destroyed. 01459_ Lgt. Ion Engine destroyed. 01463_ DL-J4O(R) destroyed. 01464_ WR-R4O(R): "ARGHSUB!" 01467_ The unstable cave ceiling collapses. Map ----- +----------------------------------------------------+ | ????????????????????????????????????????????????# | | ????????????????????????????????????????????????# | | ???????????????????????????????????????????????## | | ???????????????????????????????????????????????# | | ???????????????????????????????????????????????# | | ???????????????????????????????????????????????# | | ??????????????????????????????????????????????## | | ??????????????????????????????????????????????# | | ????????????????????????????????????????????### | | ???????????????????????????????????????????## | | ????????????????????????????????????????#### | | ???????????????????????????????????????## | | ???????????????????????????????????????# | | ????????????????#######????????????##### | | ???????????????## "R ##??????????# | | ?????????????? # " ??????????# | | ????????????? & ??????????# # | | ????????????? =& ?????????## ## | | ?????????????? ;?????????# #? | | ??????????????## ?????????# ## ## | | ??????????????? ;##??????# ?## ### | | ????????????????# #####?# ?## ##### | | ????????????????## ;;;#?## ??# #??# | | ???????????# ## #??#???# ##?## | | ??????????# R ##?????# ##?## | | ??????????" @ #?????## #### | | ?????????? #??????## ## | | ?????????? ##??????### # | | ??????????? ### # ##???????# | | ????????????????##??# ; ;# #####?### # # | | ????????????????????### ###### ### # | | ??????????????????????##?????## ## | | ??????????????????????????????# ### | | ??????????????????????????????## ### | | ???????????????????????????????## #? | | ????????????????????????????????## #? | | ?????????????????????????????????## ####? | | ??????????????????????????????????# #???? | | ??????????????????????????????????# ##??? | | ??????????????????????????????????# ##?? | | ??????????????????????????????????# ## ##? | | ??????????????????????????????????#### ## | | ????????????????????????????????????# # | | ???????????????????????????????????# | | ??????????????????????????????????# ## | | ?????????????????????????????????# #### ## | | ????????????????????????????????# ###??## ### | | ????????????????????????????????## ??????## #?? | | ?????????????????????????????????### ???????# ?? | | ????????????????????????????????????????????## #? | +----------------------------------------------------+ Best States ------------- Heat Dissipation 25 Energy Generation 10 Energy Capacity 125 Matter Stores 300 Matter Capacity 300 Sight Range 16 Terrain Scan Density 10 Armor Coverage 150 Evasion (%) 41 Recoil Reduction 1 Item Schematics ----------------- None Robot Schematics ------------------ None Fabricated ------------ Nothing Repaired ---------- Nothing Alien Tech Used ----------------- None Achievements -------------- None Challenges ------------ None Game ------ Seed ReflexFlakClaws Manual? 0 Play Time 00:07:05 Cumulative 88.6 hours Start 2025.08.16 @ 15:12:47 End 2025.08.16 @ 15:23:46 Sessions 1 Manual Loads 0 Difficulty Rogue Special Mode None Game No. 34 Rogue 34 Adventurer 0 Explorer 0 Win Type - Total 1 Types 0/0/1/0/0/0/0/0/0/0 Lore% 66 Gallery% 54 Achievement% 76 Wizard Run 0 Options --------- Layout 2 ASCII 0 Keyboard 1 Movement Vi Keybinds 0 Fullscreen 1 Font 28/SwanstonBold Map View 50x52 Zoom Use 0% Tactical HUD 1 Map Filters NONE Filters NONE Steam 1 RUN: f4648fbb-9a5d-4a08-b00a-6017aa9cb6c0